[Event "*** Titled Tuesday Blitz"]
[Site "Chess.com"]
[Date "2020.03.03"]
[Round "3"]
[White "filali-marouan"]
[Black "popov_m"]
[Result "1-0"]
[WhiteElo "2392"]
[BlackElo "2575"]
[TimeControl "180+1"]
[EndTime "13:31:11 PST"]
[Termination "filali-marouan won by resignation"]

1. e4 {[%clk 0:03:00.9]} 1... g6 {[%clk 0:02:58.3]} 2. d4 {[%clk 0:02:57.7]}
2... Bg7 {[%clk 0:02:57.7]} 3. Be3 {[%clk 0:02:55.6]} 3... d6 {[%clk 0:02:57.3]}
4. f3 {[%clk 0:02:43.8]} 4... a6 {[%clk 0:02:56]} 5. Bc4 {[%clk 0:02:42.1]} 5...
b5 {[%clk 0:02:39.3]} 6. Bb3 {[%clk 0:02:22.3]} 6... Bb7 {[%clk 0:02:32.8]} 7.
Ne2 {[%clk 0:02:22.4]} 7... c5 {[%clk 0:02:31.6]} 8. c3 {[%clk 0:02:21.9]} 8...
Nd7 {[%clk 0:02:25.6]} 9. O-O {[%clk 0:02:19.4]} 9... Ngf6 {[%clk 0:02:17.9]}
10. Nd2 {[%clk 0:02:07.5]} 10... h5 {[%clk 0:02:10.4]} 11. Nf4 {[%clk
0:02:05.5]} 11... h4 {[%clk 0:02:09.9]} 12. h3 {[%clk 0:02:04.6]} 12... cxd4
{[%clk 0:02:02.9]} 13. cxd4 {[%clk 0:02:04.2]} 13... e5 {[%clk 0:02:03.1]} 14.
Ne2 {[%clk 0:02:03.1]} 14... Nh5 {[%clk 0:02:01.4]} 15. Rc1 {[%clk 0:02:01.5]}
15... exd4 {[%clk 0:01:56.2]} 16. Bxd4 {[%clk 0:01:59.4]} 16... Bxd4+ {[%clk
0:01:56]} 17. Nxd4 {[%clk 0:01:59.4]} 17... Qb6 {[%clk 0:01:50.3]} 18. Nb1
{[%clk 0:01:59.1]} 18... O-O {[%clk 0:01:41.2]} 19. Kh2 {[%clk 0:01:56.9]} 19...
d5 {[%clk 0:01:28]} 20. f4 {[%clk 0:01:38.7]} 20... Ng3 {[%clk 0:01:22.6]} 21.
Re1 {[%clk 0:01:32.6]} 21... dxe4 {[%clk 0:01:18.2]} 22. Qg4 {[%clk 0:01:23.9]}
22... Qxd4 {[%clk 0:00:55.8]} 23. Rcd1 {[%clk 0:01:13.7]} 23... Ne5 {[%clk
0:00:55.4]} 24. fxe5 {[%clk 0:00:53.2]} 24... Qxe5 {[%clk 0:00:47.7]} 25. Qxg6+
{[%clk 0:00:52]} 25... Qg7 {[%clk 0:00:48.1]} 26. Qxg7+ {[%clk 0:00:47.4]} 26...
Kxg7 {[%clk 0:00:49]} 27. Rd7 {[%clk 0:00:47.5]} 27... Bc6 {[%clk 0:00:47.5]}
28. Rd6 {[%clk 0:00:38.8]} 28... Rac8 {[%clk 0:00:45.5]} 29. Nc3 {[%clk
0:00:37.4]} 29... f5 {[%clk 0:00:45.3]} 30. Bd5 {[%clk 0:00:22.1]} 30... Bxd5
{[%clk 0:00:43.1]} 31. Nxd5 {[%clk 0:00:23]} 31... Rfd8 {[%clk 0:00:41]} 32.
Rxd8 {[%clk 0:00:18.7]} 32... Rxd8 {[%clk 0:00:41.9]} 33. Nf4 {[%clk 0:00:16.8]}
33... Rd2 {[%clk 0:00:40.2]} 34. Rc1 {[%clk 0:00:17.4]} 34... Rxb2 {[%clk
0:00:39.2]} 35. Rc7+ {[%clk 0:00:18.3]} 35... Kf6 {[%clk 0:00:38.7]} 36. Rc6+
{[%clk 0:00:18.8]} 36... Ke5 {[%clk 0:00:34.8]} 37. Ng6+ {[%clk 0:00:19.2]}
37... Kd4 {[%clk 0:00:35]} 38. Rxa6 {[%clk 0:00:20]} 38... Rb1 {[%clk 0:00:34]}
39. Nxh4 {[%clk 0:00:19.3]} 39... Nf1+ {[%clk 0:00:34.5]} 40. Kg1 {[%clk
0:00:19.3]} 40... Ne3+ {[%clk 0:00:32.2]} 41. Kf2 {[%clk 0:00:19.4]} 41... Rb2+
{[%clk 0:00:32.1]} 42. Kg3 {[%clk 0:00:18.7]} 42... Nf1+ {[%clk 0:00:22.5]} 43.
Kf4 {[%clk 0:00:16]} 43... Rf2+ {[%clk 0:00:23]} 44. Kg5 {[%clk 0:00:16.6]}
44... e3 {[%clk 0:00:23.5]} 45. Nxf5+ {[%clk 0:00:16.9]} 45... Rxf5+ {[%clk
0:00:20.4]} 46. Kxf5 {[%clk 0:00:17.8]} 46... e2 {[%clk 0:00:20.9]} 47. Rd6+
{[%clk 0:00:17.9]} 47... Ke3 {[%clk 0:00:18.8]} 48. Re6+ {[%clk 0:00:18.5]}
48... Kf2 {[%clk 0:00:19.4]} 49. Rxe2+ {[%clk 0:00:19]} 49... Kxe2 {[%clk
0:00:20.3]} 50. h4 {[%clk 0:00:18.7]} 50... Kd3 {[%clk 0:00:18.2]} 51. g4 {[%clk
0:00:18.2]} 51... Kd4 {[%clk 0:00:17.9]} 52. g5 {[%clk 0:00:18.3]} 52... Ng3+
{[%clk 0:00:16.4]} 53. Kg4 {[%clk 0:00:18.3]} 53... Ne4 {[%clk 0:00:16.8]} 54.
h5 {[%clk 0:00:18.7]} 54... Ke5 {[%clk 0:00:17.2]} 55. h6 {[%clk 0:00:18.8]}
55... Nf2+ {[%clk 0:00:15.4]} 56. Kh5 {[%clk 0:00:18.5]} 56... Ne4 {[%clk
0:00:01.4]} 57. h7 {[%clk 0:00:18.2]} 57... Ng3+ {[%clk 0:00:01.4]} 58. Kg6
{[%clk 0:00:17.9]} 1-0

[Event "*** Titled Tuesday Blitz"]
[Site "Chess.com"]
[Date "2020.03.03"]
[Round "3"]
[White "diskeleven"]
[Black "dusanacns"]
[Result "0-1"]
[WhiteElo "2370"]
[BlackElo "2611"]
[TimeControl "180+1"]
[EndTime "13:31:19 PST"]
[Termination "dusanacns won by resignation"]

1. d4 {[%clk 0:03:00.9]} 1... Nf6 {[%clk 0:02:58.9]} 2. c4 {[%clk 0:03:00.5]}
2... g6 {[%clk 0:02:59.4]} 3. Nc3 {[%clk 0:02:59.7]} 3... Bg7 {[%clk 0:03:00]}
4. e4 {[%clk 0:03:00]} 4... O-O {[%clk 0:03:00.5]} 5. f3 {[%clk 0:03:00.4]} 5...
d6 {[%clk 0:03:00]} 6. Bg5 {[%clk 0:03:00.4]} 6... c5 {[%clk 0:02:59.5]} 7. d5
{[%clk 0:03:00.1]} 7... e6 {[%clk 0:02:59.8]} 8. Nge2 {[%clk 0:03:00.3]} 8...
exd5 {[%clk 0:02:56.5]} 9. cxd5 {[%clk 0:03:00.4]} 9... a6 {[%clk 0:02:53.9]}
10. a4 {[%clk 0:02:59.5]} 10... h6 {[%clk 0:02:46.7]} 11. Be3 {[%clk 0:02:54]}
11... Nbd7 {[%clk 0:02:44.3]} 12. Ng3 {[%clk 0:02:50.3]} 12... Re8 {[%clk
0:02:42.1]} 13. Be2 {[%clk 0:02:48.1]} 13... h5 {[%clk 0:02:39.3]} 14. O-O
{[%clk 0:02:44.4]} 14... h4 {[%clk 0:02:38.6]} 15. Nh1 {[%clk 0:02:44.4]} 15...
Nh7 {[%clk 0:02:36.3]} 16. Nf2 {[%clk 0:02:42.3]} 16... f5 {[%clk 0:02:30.9]}
17. Qd2 {[%clk 0:02:42.4]} 17... Ndf6 {[%clk 0:02:23.6]} 18. Kh1 {[%clk
0:02:30.7]} 18... Bd7 {[%clk 0:02:17.9]} 19. exf5 {[%clk 0:02:23.5]} 19... Bxf5
{[%clk 0:02:09.6]} 20. Bh6 {[%clk 0:02:23.1]} 20... Bh8 {[%clk 0:01:30.8]} 21.
Bd3 {[%clk 0:02:22.8]} 21... Qd7 {[%clk 0:01:15]} 22. Nfe4 {[%clk 0:02:22.4]}
22... Nh5 {[%clk 0:01:00.5]} 23. a5 {[%clk 0:02:13]} 23... Be5 {[%clk
0:00:52.7]} 24. Na4 {[%clk 0:01:50.7]} 24... Rad8 {[%clk 0:00:37]} 25. Nb6
{[%clk 0:01:50.3]} 25... Qf7 {[%clk 0:00:36.4]} 26. Rae1 {[%clk 0:01:43.3]}
26... N5f6 {[%clk 0:00:16]} 27. Ng5 {[%clk 0:01:23.8]} 27... Nxg5 {[%clk
0:00:15.1]} 28. Bxg5 {[%clk 0:01:23.7]} 28... Bxd3 {[%clk 0:00:12.1]} 29. Qxd3
{[%clk 0:01:23]} 29... h3 {[%clk 0:00:12.5]} 30. Rg1 {[%clk 0:01:10.9]} 30...
Bxb2 {[%clk 0:00:08.8]} 31. gxh3 {[%clk 0:01:10.6]} 31... Rxe1 {[%clk
0:00:08.8]} 32. Rxe1 {[%clk 0:01:09]} 32... Re8 {[%clk 0:00:09.2]} 33. Re6
{[%clk 0:01:08.1]} 33... Be5 {[%clk 0:00:05]} 34. f4 {[%clk 0:01:05.2]} 34...
Bd4 {[%clk 0:00:04.7]} 35. Nc4 {[%clk 0:00:49]} 35... Rxe6 {[%clk 0:00:02.2]}
36. dxe6 {[%clk 0:00:48.9]} 36... Qxe6 {[%clk 0:00:03.1]} 37. Qxg6+ {[%clk
0:00:48.5]} 37... Kf8 {[%clk 0:00:03.8]} 38. Bh6+ {[%clk 0:00:43.5]} 38... Ke7
{[%clk 0:00:04.1]} 39. Qg7+ {[%clk 0:00:42]} 39... Kd8 {[%clk 0:00:03.6]} 40.
Qf8+ {[%clk 0:00:38.8]} 40... Kd7 {[%clk 0:00:03.6]} 41. Nb6+ {[%clk 0:00:33.7]}
41... Kc6 {[%clk 0:00:04.1]} 42. Qc8+ {[%clk 0:00:14.5]} 42... Qxc8 {[%clk
0:00:04.1]} 43. Nxc8 {[%clk 0:00:15.4]} 43... c4 {[%clk 0:00:05]} 44. Ne7+
{[%clk 0:00:15.5]} 44... Kb5 {[%clk 0:00:05.4]} 45. f5 {[%clk 0:00:16.4]} 45...
c3 {[%clk 0:00:05.6]} 46. Bc1 {[%clk 0:00:17.3]} 46... Kc4 {[%clk 0:00:06]} 47.
Kg2 {[%clk 0:00:18.2]} 47... Kd3 {[%clk 0:00:06.5]} 48. Nc8 {[%clk 0:00:19.1]}
48... d5 {[%clk 0:00:06.3]} 49. Nd6 {[%clk 0:00:20]} 49... c2 {[%clk 0:00:06.2]}
50. Nb5 {[%clk 0:00:20.9]} 50... Be5 {[%clk 0:00:06]} 51. Nc3 {[%clk 0:00:21.8]}
51... Bxc3 {[%clk 0:00:06.1]} 52. Bb2 {[%clk 0:00:22.7]} 52... Bxb2 {[%clk
0:00:06.2]} 53. Kf3 {[%clk 0:00:23.2]} 53... c1=Q {[%clk 0:00:07.1]} 54. h4
{[%clk 0:00:22.6]} 54... Qe3+ {[%clk 0:00:08]} 55. Kg2 {[%clk 0:00:22.8]} 55...
Be5 {[%clk 0:00:08.9]} 56. Kf1 {[%clk 0:00:21.2]} 56... Qd2 {[%clk 0:00:08.6]}
57. h5 {[%clk 0:00:20.8]} 57... Ke3 {[%clk 0:00:09.5]} 0-1

[Event "*** Titled Tuesday Blitz"]
[Site "Chess.com"]
[Date "2020.03.03"]
[Round "3"]
[White "goldenspine"]
[Black "MisiekZielony"]
[Result "1-0"]
[WhiteElo "2352"]
[BlackElo "2077"]
[TimeControl "180+1"]
[EndTime "13:31:19 PST"]
[Termination "goldenspine won on time"]

1. d4 {[%clk 0:03:00.9]} 1... Nf6 {[%clk 0:02:59.2]} 2. c4 {[%clk 0:03:01.3]}
2... c6 {[%clk 0:02:58.6]} 3. Nc3 {[%clk 0:03:00.6]} 3... d5 {[%clk 0:02:58.7]}
4. cxd5 {[%clk 0:02:57.9]} 4... cxd5 {[%clk 0:02:58.5]} 5. Bf4 {[%clk
0:02:56.7]} 5... Nc6 {[%clk 0:02:56.3]} 6. e3 {[%clk 0:02:56.7]} 6... e6 {[%clk
0:02:55.1]} 7. Nf3 {[%clk 0:02:54.6]} 7... Be7 {[%clk 0:02:54.8]} 8. h3 {[%clk
0:02:54.4]} 8... O-O {[%clk 0:02:54.3]} 9. Bd3 {[%clk 0:02:52.6]} 9... Nh5
{[%clk 0:02:54]} 10. Bh2 {[%clk 0:02:52]} 10... f5 {[%clk 0:02:53.6]} 11. Ne5
{[%clk 0:02:45.3]} 11... Nf6 {[%clk 0:02:50.1]} 12. Nxc6 {[%clk 0:02:34.3]}
12... bxc6 {[%clk 0:02:49.4]} 13. O-O {[%clk 0:02:30.7]} 13... c5 {[%clk
0:02:43.2]} 14. Rc1 {[%clk 0:02:27.3]} 14... c4 {[%clk 0:02:34.2]} 15. Bb1
{[%clk 0:02:24]} 15... Bd7 {[%clk 0:02:18.1]} 16. f3 {[%clk 0:02:20.4]} 16...
Qb6 {[%clk 0:02:05.8]} 17. Qe2 {[%clk 0:02:19.4]} 17... Bd6 {[%clk 0:01:57.7]}
18. Be5 {[%clk 0:01:34.8]} 18... Bxe5 {[%clk 0:01:45]} 19. dxe5 {[%clk
0:01:35.7]} 19... Ne8 {[%clk 0:01:44.5]} 20. Kh1 {[%clk 0:01:32.4]} 20... Rb8
{[%clk 0:01:32.2]} 21. Rf2 {[%clk 0:01:25.4]} 21... f4 {[%clk 0:01:25.1]} 22.
exf4 {[%clk 0:01:21.7]} 22... Rxf4 {[%clk 0:01:24.6]} 23. Qc2 {[%clk 0:01:12.3]}
23... g6 {[%clk 0:01:23.6]} 24. Rd2 {[%clk 0:01:08.3]} 24... Ng7 {[%clk
0:01:16.9]} 25. Ne2 {[%clk 0:01:05.9]} 25... Rf7 {[%clk 0:01:13.2]} 26. Qc3
{[%clk 0:01:00.9]} 26... Nf5 {[%clk 0:01:08.6]} 27. Bxf5 {[%clk 0:01:00.2]}
27... Rxf5 {[%clk 0:01:02.2]} 28. Ng3 {[%clk 0:00:51]} 28... Rf7 {[%clk
0:00:56.5]} 29. Ne2 {[%clk 0:00:33.5]} 29... Rbf8 {[%clk 0:00:54.6]} 30. Nd4
{[%clk 0:00:33.2]} 30... Rf4 {[%clk 0:00:48.4]} 31. b3 {[%clk 0:00:24]} 31...
cxb3 {[%clk 0:00:43.7]} 32. Qxb3 {[%clk 0:00:24.2]} 32... Qd8 {[%clk 0:00:33.2]}
33. Qe3 {[%clk 0:00:23.9]} 33... Qh4 {[%clk 0:00:30.2]} 34. Rc7 {[%clk
0:00:20.5]} 34... R8f7 {[%clk 0:00:28.6]} 35. Ne2 {[%clk 0:00:14]} 35... Rc4
{[%clk 0:00:26.1]} 36. Rxc4 {[%clk 0:00:13.1]} 36... Qxc4 {[%clk 0:00:25.1]} 37.
Nd4 {[%clk 0:00:12.5]} 37... Kg7 {[%clk 0:00:23.5]} 38. Rc2 {[%clk 0:00:12.7]}
38... Qb4 {[%clk 0:00:23.1]} 39. Rc7 {[%clk 0:00:12.6]} 39... Qb6 {[%clk
0:00:22.1]} 40. Qc3 {[%clk 0:00:10.7]} 40... Be8 {[%clk 0:00:18.6]} 41. Rc8
{[%clk 0:00:09.6]} 41... Bd7 {[%clk 0:00:18]} 42. Rc7 {[%clk 0:00:08.7]} 42...
Be8 {[%clk 0:00:17.5]} 43. Rc8 {[%clk 0:00:06.5]} 43... Ba4 {[%clk 0:00:16.3]}
44. Kh2 {[%clk 0:00:05.8]} 44... h6 {[%clk 0:00:15.7]} 45. Qc5 {[%clk
0:00:05.7]} 45... Qxc5 {[%clk 0:00:15.2]} 46. Nxe6+ {[%clk 0:00:06.1]} 46... Kh7
{[%clk 0:00:13.3]} 47. Nxc5 {[%clk 0:00:07]} 47... Bb5 {[%clk 0:00:11.8]} 48. e6
{[%clk 0:00:07.2]} 48... Re7 {[%clk 0:00:09.8]} 49. Rd8 {[%clk 0:00:07.2]} 49...
Kg7 {[%clk 0:00:07.6]} 50. Rxd5 {[%clk 0:00:06.5]} 50... Bc4 {[%clk 0:00:07.1]}
51. Re5 {[%clk 0:00:06.6]} 51... Bxa2 {[%clk 0:00:06.4]} 52. f4 {[%clk
0:00:05.9]} 52... Bc4 {[%clk 0:00:04.8]} 53. g4 {[%clk 0:00:05.5]} 53... a5
{[%clk 0:00:03.4]} 54. f5 {[%clk 0:00:05.5]} 54... gxf5 {[%clk 0:00:03.1]} 55.
gxf5 {[%clk 0:00:06.4]} 1-0

[Event "*** Titled Tuesday Blitz"]
[Site "Chess.com"]
[Date "2020.03.03"]
[Round "3"]
[White "WiktoriaPOL"]
[Black "dopolian"]
[Result "0-1"]
[WhiteElo "2149"]
[BlackElo "2374"]
[TimeControl "180+1"]
[EndTime "13:31:27 PST"]
[Termination "dopolian won on time"]

1. c4 {[%clk 0:03:00.9]} 1... Nf6 {[%clk 0:03:00]} 2. Nc3 {[%clk 0:02:59.6]}
2... e6 {[%clk 0:02:59.8]} 3. e4 {[%clk 0:02:59.2]} 3... d6 {[%clk 0:02:57.3]}
4. d4 {[%clk 0:02:58.4]} 4... Nbd7 {[%clk 0:02:55.9]} 5. Nf3 {[%clk 0:02:57.1]}
5... c5 {[%clk 0:02:55.8]} 6. d5 {[%clk 0:02:56.6]} 6... exd5 {[%clk 0:02:56]}
7. exd5 {[%clk 0:02:52.6]} 7... g6 {[%clk 0:02:54.3]} 8. Bd3 {[%clk 0:02:47.7]}
8... Qe7+ {[%clk 0:02:47.9]} 9. Qe2 {[%clk 0:02:45.4]} 9... Qxe2+ {[%clk
0:02:45.9]} 10. Bxe2 {[%clk 0:02:45.4]} 10... a6 {[%clk 0:02:37.6]} 11. O-O
{[%clk 0:02:40]} 11... Kd8 {[%clk 0:02:36.5]} 12. Re1 {[%clk 0:02:36.6]} 12...
Bg7 {[%clk 0:02:34.7]} 13. Bf4 {[%clk 0:02:36.2]} 13... Kc7 {[%clk 0:02:31.7]}
14. Ng5 {[%clk 0:02:35]} 14... Rf8 {[%clk 0:02:27.6]} 15. Nce4 {[%clk
0:02:31.8]} 15... Nxe4 {[%clk 0:02:26.8]} 16. Nxe4 {[%clk 0:02:31.5]} 16... Ne5
{[%clk 0:02:23.5]} 17. Bf1 {[%clk 0:02:24.3]} 17... Bf5 {[%clk 0:02:18.1]} 18.
Nxc5 {[%clk 0:02:22.5]} 18... Rfe8 {[%clk 0:02:11.3]} 19. Ne4 {[%clk 0:02:16.7]}
19... Kd7 {[%clk 0:01:40.3]} 20. Ng5 {[%clk 0:02:12.1]} 20... h6 {[%clk
0:01:33.2]} 21. Bxe5 {[%clk 0:02:10.3]} 21... Rxe5 {[%clk 0:01:29.2]} 22. Nf3
{[%clk 0:01:53.4]} 22... Rxe1 {[%clk 0:01:28]} 23. Rxe1 {[%clk 0:01:53.7]} 23...
Bxb2 {[%clk 0:01:24.8]} 24. Nh4 {[%clk 0:01:53.4]} 24... Bc3 {[%clk 0:01:01.1]}
25. Rc1 {[%clk 0:01:48.7]} 25... Bd4 {[%clk 0:00:59.3]} 26. Nxf5 {[%clk
0:01:47.7]} 26... gxf5 {[%clk 0:00:59.4]} 27. Bd3 {[%clk 0:01:47.1]} 27... f4
{[%clk 0:00:59]} 28. Rb1 {[%clk 0:01:46.3]} 28... b6 {[%clk 0:00:57.8]} 29. Bf5+
{[%clk 0:01:44.8]} 29... Ke7 {[%clk 0:00:57.4]} 30. Re1+ {[%clk 0:01:38.1]}
30... Kf6 {[%clk 0:00:57.4]} 31. Bd7 {[%clk 0:01:36.7]} 31... Rd8 {[%clk
0:00:55.1]} 32. Bc6 {[%clk 0:01:35.8]} 32... Rc8 {[%clk 0:00:42.4]} 33. Kf1
{[%clk 0:01:33.1]} 33... Rb8 {[%clk 0:00:41]} 34. Rb1 {[%clk 0:01:27.2]} 34...
Rc8 {[%clk 0:00:37.6]} 35. Ke2 {[%clk 0:01:25.5]} 35... Rc7 {[%clk 0:00:36.6]}
36. Kd3 {[%clk 0:01:24.3]} 36... Bxf2 {[%clk 0:00:36.2]} 37. Rf1 {[%clk
0:01:21.2]} 37... Be3 {[%clk 0:00:34.7]} 38. g3 {[%clk 0:01:19.7]} 38... Re7
{[%clk 0:00:31.2]} 39. gxf4 {[%clk 0:01:18]} 39... Bc5 {[%clk 0:00:31.5]} 40. a4
{[%clk 0:00:48.4]} 40... Re3+ {[%clk 0:00:29.5]} 41. Kd2 {[%clk 0:00:46.5]}
41... Rh3 {[%clk 0:00:29.7]} 42. Rh1 {[%clk 0:00:43]} 42... Rh4 {[%clk
0:00:29.8]} 43. Ke2 {[%clk 0:00:29.7]} 43... Kf5 {[%clk 0:00:27]} 44. Bd7+
{[%clk 0:00:28]} 44... Ke4 {[%clk 0:00:26.6]} 45. f5 {[%clk 0:00:25.2]} 45...
Rh3 {[%clk 0:00:23.5]} 46. Bc8 {[%clk 0:00:18.7]} 46... a5 {[%clk 0:00:21]} 47.
f6 {[%clk 0:00:11.4]} 47... Re3+ {[%clk 0:00:20.1]} 48. Kd2 {[%clk 0:00:10.7]}
48... Rf3 {[%clk 0:00:20]} 49. Re1+ {[%clk 0:00:05.5]} 49... Be3+ {[%clk
0:00:18.7]} 50. Ke2 {[%clk 0:00:03.4]} 50... Rf2+ {[%clk 0:00:12.2]} 51. Kd1
{[%clk 0:00:03]} 51... Rd2+ {[%clk 0:00:08.4]} 52. Kc1 {[%clk 0:00:02.2]} 52...
Rxh2+ {[%clk 0:00:05.4]} 0-1

[Event "*** Titled Tuesday Blitz"]
[Site "Chess.com"]
[Date "2020.03.03"]
[Round "3"]
[White "enzovsky"]
[Black "Atanejhad"]
[Result "0-1"]
[WhiteElo "2330"]
[BlackElo "2589"]
[TimeControl "180+1"]
[EndTime "13:31:28 PST"]
[Termination "Atanejhad won by resignation"]

1. e4 {[%clk 0:03:00.9]} 1... e5 {[%clk 0:02:59.7]} 2. Nf3 {[%clk 0:03:00.6]}
2... Nc6 {[%clk 0:03:00]} 3. d4 {[%clk 0:02:57.5]} 3... exd4 {[%clk 0:02:59.8]}
4. Nxd4 {[%clk 0:02:58.4]} 4... Nf6 {[%clk 0:02:58.5]} 5. Nxc6 {[%clk
0:02:49.9]} 5... bxc6 {[%clk 0:02:59.4]} 6. e5 {[%clk 0:02:49.2]} 6... Qe7
{[%clk 0:02:59.1]} 7. Qe2 {[%clk 0:02:45.9]} 7... Nd5 {[%clk 0:02:59.2]} 8. c4
{[%clk 0:02:41.9]} 8... Nb6 {[%clk 0:02:58.1]} 9. Nc3 {[%clk 0:02:40]} 9... g6
{[%clk 0:02:47]} 10. Ne4 {[%clk 0:02:33.5]} 10... h6 {[%clk 0:02:33.7]} 11. Nf6+
{[%clk 0:02:19.8]} 11... Kd8 {[%clk 0:02:33.5]} 12. Bd2 {[%clk 0:02:14.5]} 12...
Bg7 {[%clk 0:02:25.3]} 13. Bc3 {[%clk 0:02:12.9]} 13... Ba6 {[%clk 0:02:22.3]}
14. b3 {[%clk 0:02:08.8]} 14... Nd5 {[%clk 0:02:15]} 15. Nxd5 {[%clk 0:02:01.5]}
15... cxd5 {[%clk 0:02:15.9]} 16. O-O-O {[%clk 0:01:53.1]} 16... dxc4 {[%clk
0:02:09.2]} 17. Qe4 {[%clk 0:01:48.8]} 17... Rb8 {[%clk 0:01:34.3]} 18. e6
{[%clk 0:01:15.3]} 18... Qa3+ {[%clk 0:01:17.3]} 19. Kb1 {[%clk 0:01:13.5]}
19... Rxb3+ {[%clk 0:01:15.8]} 20. axb3 {[%clk 0:01:07.3]} 20... Qxb3+ {[%clk
0:01:16.7]} 21. Kc1 {[%clk 0:01:05.3]} 21... Qxc3+ {[%clk 0:01:08.7]} 22. Qc2
{[%clk 0:01:04.8]} 22... fxe6 {[%clk 0:00:34.3]} 23. Qxc3 {[%clk 0:00:56.7]}
23... Bxc3 {[%clk 0:00:35.2]} 24. Kc2 {[%clk 0:00:56.7]} 24... Be5 {[%clk
0:00:18.8]} 25. g3 {[%clk 0:00:50.3]} 25... Ke7 {[%clk 0:00:15.5]} 26. f4 {[%clk
0:00:49.6]} 26... Bf6 {[%clk 0:00:14.5]} 27. Bg2 {[%clk 0:00:49.1]} 27... Bb5
{[%clk 0:00:13.7]} 28. Rb1 {[%clk 0:00:44.7]} 28... a6 {[%clk 0:00:13.8]} 29.
Rhe1 {[%clk 0:00:41.4]} 29... c6 {[%clk 0:00:11.9]} 30. g4 {[%clk 0:00:38.7]}
30... c3 {[%clk 0:00:11.2]} 31. f5 {[%clk 0:00:36.2]} 31... gxf5 {[%clk
0:00:10.7]} 32. gxf5 {[%clk 0:00:35.6]} 32... Ba4+ {[%clk 0:00:10.4]} 33. Kd3
{[%clk 0:00:33.7]} 33... c2 {[%clk 0:00:10.7]} 34. Rb7 {[%clk 0:00:29.6]} 34...
Bg5 {[%clk 0:00:04.3]} 35. Rxe6+ {[%clk 0:00:23.3]} 35... Kf7 {[%clk 0:00:04.5]}
36. Rxd7+ {[%clk 0:00:22.8]} 36... Kf8 {[%clk 0:00:04.6]} 37. Re1 {[%clk
0:00:13.9]} 37... c1=Q {[%clk 0:00:04.8]} 38. Rxc1 {[%clk 0:00:13.8]} 38... Bxc1
{[%clk 0:00:05.7]} 39. f6 {[%clk 0:00:10.8]} 39... Bb5+ {[%clk 0:00:04.6]} 40.
Kd4 {[%clk 0:00:10.4]} 40... Rg8 {[%clk 0:00:03.8]} 41. Be4 {[%clk 0:00:06.2]}
41... Rg4 {[%clk 0:00:02.2]} 42. Ke5 {[%clk 0:00:06.1]} 42... Bb2+ {[%clk
0:00:03.1]} 43. Kf5 {[%clk 0:00:05.7]} 43... Rg5+ {[%clk 0:00:03.3]} 44. Ke6
{[%clk 0:00:05.4]} 44... Re5+ {[%clk 0:00:03.5]} 45. Kd6 {[%clk 0:00:05.9]}
45... Rxe4 {[%clk 0:00:04]} 46. Rh7 {[%clk 0:00:05.4]} 46... Bxf6 {[%clk
0:00:02.8]} 47. Rxh6 {[%clk 0:00:06]} 47... Bg7 {[%clk 0:00:03.4]} 48. Rg6
{[%clk 0:00:05.9]} 48... Kg8 {[%clk 0:00:04.3]} 49. h4 {[%clk 0:00:05.7]} 49...
Rd4+ {[%clk 0:00:05.2]} 50. Kc5 {[%clk 0:00:05.9]} 50... Kh7 {[%clk 0:00:05]}
51. h5 {[%clk 0:00:05.1]} 51... Rd5+ {[%clk 0:00:05]} 52. Kb6 {[%clk 0:00:04.7]}
52... Rxh5 {[%clk 0:00:05.9]} 53. Re6 {[%clk 0:00:04.4]} 0-1

[Event "*** Titled Tuesday Blitz"]
[Site "Chess.com"]
[Date "2020.03.03"]
[Round "3"]
[White "GMKrikor"]
[Black "saikrishnaReturns"]
[Result "1-0"]
[WhiteElo "2830"]
[BlackElo "2646"]
[TimeControl "180+1"]
[EndTime "13:31:29 PST"]
[Termination "GMKrikor won on time"]

1. Nf3 {[%clk 0:03:00.9]} 1... Nf6 {[%clk 0:02:59.5]} 2. c4 {[%clk 0:03:00.8]}
2... g6 {[%clk 0:02:58.1]} 3. Nc3 {[%clk 0:03:01.2]} 3... Bg7 {[%clk 0:02:58.4]}
4. e4 {[%clk 0:03:01.4]} 4... d6 {[%clk 0:02:58.5]} 5. d4 {[%clk 0:03:01.8]}
5... O-O {[%clk 0:02:58.5]} 6. h3 {[%clk 0:03:02.4]} 6... e5 {[%clk 0:02:57.6]}
7. d5 {[%clk 0:03:03]} 7... Nbd7 {[%clk 0:02:57.2]} 8. Be3 {[%clk 0:03:02.6]}
8... Nc5 {[%clk 0:02:56.1]} 9. Nd2 {[%clk 0:03:02.9]} 9... a5 {[%clk 0:02:56]}
10. g4 {[%clk 0:03:03.3]} 10... Ne8 {[%clk 0:02:49.1]} 11. h4 {[%clk 0:02:59.2]}
11... h6 {[%clk 0:02:48.8]} 12. h5 {[%clk 0:02:55.6]} 12... g5 {[%clk
0:02:48.4]} 13. Be2 {[%clk 0:02:52.3]} 13... c6 {[%clk 0:02:29]} 14. Kf1 {[%clk
0:02:50.2]} 14... Nc7 {[%clk 0:02:19.3]} 15. Kg2 {[%clk 0:02:48.4]} 15... b5
{[%clk 0:01:44.4]} 16. b3 {[%clk 0:02:31.1]} 16... Ba6 {[%clk 0:01:29.9]} 17.
dxc6 {[%clk 0:02:25.2]} 17... b4 {[%clk 0:01:28.1]} 18. Nd5 {[%clk 0:02:25.2]}
18... N7e6 {[%clk 0:01:27.1]} 19. f3 {[%clk 0:02:05.3]} 19... Nd4 {[%clk
0:01:22.1]} 20. c7 {[%clk 0:01:59.6]} 20... Qd7 {[%clk 0:01:12.9]} 21. Nf1
{[%clk 0:02:00]} 21... Nce6 {[%clk 0:01:09.1]} 22. Ng3 {[%clk 0:01:55]} 22...
Nxc7 {[%clk 0:01:06.7]} 23. Nb6 {[%clk 0:01:50.5]} 23... Qd8 {[%clk 0:00:57.8]}
24. Nxa8 {[%clk 0:01:50.6]} 24... Qxa8 {[%clk 0:00:55.5]} 25. Nf5 {[%clk
0:01:45.3]} 25... Nce6 {[%clk 0:00:52.9]} 26. a3 {[%clk 0:01:21.4]} 26... Qb8
{[%clk 0:00:38.8]} 27. Ne7+ {[%clk 0:01:12.9]} 27... Kh8 {[%clk 0:00:34.1]} 28.
Nd5 {[%clk 0:01:13.4]} 28... Nc5 {[%clk 0:00:30.2]} 29. Bxd4 {[%clk 0:01:10.7]}
29... exd4 {[%clk 0:00:30.3]} 30. axb4 {[%clk 0:01:11.4]} 30... axb4 {[%clk
0:00:30.8]} 31. Bd3 {[%clk 0:01:07.3]} 31... Bb7 {[%clk 0:00:29.6]} 32. Re1
{[%clk 0:01:01.5]} 32... Ne6 {[%clk 0:00:27.9]} 33. Qd2 {[%clk 0:00:57.2]} 33...
Bxd5 {[%clk 0:00:27.4]} 34. exd5 {[%clk 0:00:58.1]} 34... Nf4+ {[%clk
0:00:27.5]} 35. Kh1 {[%clk 0:00:57.5]} 35... Be5 {[%clk 0:00:26.8]} 36. Ra4
{[%clk 0:00:47]} 36... Kg7 {[%clk 0:00:15.7]} 37. Bf5 {[%clk 0:00:39.2]} 37...
Qc7 {[%clk 0:00:13]} 38. Rxb4 {[%clk 0:00:25.8]} 38... Ra8 {[%clk 0:00:12.9]}
39. Bb1 {[%clk 0:00:19.8]} 39... d3 {[%clk 0:00:12.4]} 40. Bxd3 {[%clk 0:00:13]}
40... Qc5 {[%clk 0:00:12.1]} 41. Ra4 {[%clk 0:00:09.3]} 41... Rxa4 {[%clk
0:00:10.6]} 42. bxa4 {[%clk 0:00:10.2]} 42... Nxd3 {[%clk 0:00:09]} 43. Qxd3
{[%clk 0:00:09.1]} 43... Qf2 {[%clk 0:00:09.5]} 44. Qe2 {[%clk 0:00:02.7]} 44...
Qg3 {[%clk 0:00:09.6]} 45. Rf1 {[%clk 0:00:02]} 45... Qh3+ {[%clk 0:00:09.4]}
46. Kg1 {[%clk 0:00:02.7]} 46... Bd4+ {[%clk 0:00:08.8]} 47. Rf2 {[%clk
0:00:03.2]} 47... Qg3+ {[%clk 0:00:08.1]} 48. Kf1 {[%clk 0:00:03.8]} 48... Qh3+
{[%clk 0:00:07.2]} 49. Ke1 {[%clk 0:00:03]} 49... Qg3 {[%clk 0:00:07.4]} 50. a5
{[%clk 0:00:02.5]} 50... Qg1+ {[%clk 0:00:05.3]} 51. Rf1 {[%clk 0:00:01.4]}
51... Qg3+ {[%clk 0:00:04.4]} 52. Kd2 {[%clk 0:00:02]} 52... Qf4+ {[%clk
0:00:04.6]} 53. Kc2 {[%clk 0:00:02.2]} 53... Bf6 {[%clk 0:00:02.9]} 54. Rd1
{[%clk 0:00:01.7]} 1-0